[Event "Titled Tuesday Blitz May 23 Early 2023"]
[White "Jaivardhan Raj"]
[Black "Seemann, Jakub"]
[WhiteFideId "25744437"]
[BlackFideId "21874697"]
[WhiteElo "1772"]
[BlackElo "2364"]
[Result "1-0"]
[Round "02"]
[TimeControl "180+2"]
[Date "2023.05.23"]
[WhiteClock "0:00:08"]
[BlackClock "0:00:06"]

1. e4 {[%clk 0:03:00]}  e5 {[%clk 0:02:58]} 2. d4 {[%clk 0:03:00]}  exd4 {[%clk 0:02:58]} 3. Qxd4 {[%clk 0:03:01]}  Nc6 {[%clk 0:02:58]} 4. Qe3 {[%clk 0:02:59]}  Bb4+ {[%clk 0:02:52]} 5. Nc3 {[%clk 0:02:58]}  Nf6 {[%clk 0:02:51]} 6. Bd2 {[%clk 0:02:58]}  O-O {[%clk 0:02:48]} 7. O-O-O {[%clk 0:02:58]}  d6 {[%clk 0:02:32]} 8. f3 {[%clk 0:02:56]}  a5 {[%clk 0:02:30]} 9. g4 {[%clk 0:02:47]}  a4 {[%clk 0:02:28]} 10. h4 {[%clk 0:02:39]}  a3 {[%clk 0:02:28]} 11. b3 {[%clk 0:02:38]}  Be6 {[%clk 0:02:14]} 12. h5 {[%clk 0:02:24]}  Nd7 {[%clk 0:02:01]} 13. g5 {[%clk 0:02:12]}  Qb8 {[%clk 0:01:53]} 14. f4 {[%clk 0:02:03]}  Bg4 {[%clk 0:01:48]} 15. Be2 {[%clk 0:01:51]}  Bxe2 {[%clk 0:01:48]} 16. Ngxe2 {[%clk 0:01:51]}  Qa7 {[%clk 0:01:35]} 17. Qxa7 {[%clk 0:01:28]}  Nxa7 {[%clk 0:01:35]} 18. Be3 {[%clk 0:01:18]}  Nc6 {[%clk 0:01:25]} 19. Nd5 {[%clk 0:01:15]}  Rac8 {[%clk 0:01:20]} 20. Nd4 {[%clk 0:01:08]}  Rfe8 {[%clk 0:00:40]} 21. Nxc6 {[%clk 0:00:43]}  bxc6 {[%clk 0:00:41]} 22. Nxb4 {[%clk 0:00:43]}  Rxe4 {[%clk 0:00:41]} 23. Bd2 {[%clk 0:00:43]}  c5 {[%clk 0:00:36]} 24. Nc6 {[%clk 0:00:36]}  Kf8 {[%clk 0:00:24]} 25. Rhe1 {[%clk 0:00:35]}  Rxe1 {[%clk 0:00:21]} 26. Rxe1 {[%clk 0:00:35]}  Nb6 {[%clk 0:00:18]} 27. h6 {[%clk 0:00:24]}  gxh6 {[%clk 0:00:16]} 28. gxh6 {[%clk 0:00:25]}  Ra8 {[%clk 0:00:13]} 29. Bc3 {[%clk 0:00:24]}  Nd5 {[%clk 0:00:11]} 30. Bg7+ {[%clk 0:00:24]}  Kg8 {[%clk 0:00:12]} 31. Rd1 {[%clk 0:00:23]}  Ra6 {[%clk 0:00:09]} 32. Nb8 {[%clk 0:00:20]}  Ra8 {[%clk 0:00:07]} 33. Nc6 {[%clk 0:00:19]}  Ra6 {[%clk 0:00:07]} 34. Nb8 {[%clk 0:00:16]}  Ra8 {[%clk 0:00:07]} 35. Nd7 {[%clk 0:00:16]}  Rd8 {[%clk 0:00:06]} 36. Rxd5 {[%clk 0:00:15]}  Rxd7 {[%clk 0:00:06]} 37. Rg5 {[%clk 0:00:16]}  c6 {[%clk 0:00:02]} 38. Kd2 {[%clk 0:00:16]}  d5 {[%clk 0:00:03]} 39. c3 {[%clk 0:00:16]}  c4 {[%clk 0:00:02]} 40. b4 {[%clk 0:00:14]}  Rb7 {[%clk 0:00:02]} 41. Ke3 {[%clk 0:00:14]}  Re7+ {[%clk 0:00:01]} 42. Kd4 {[%clk 0:00:14]}  Rb7 {[%clk 0:00:01]} 43. Kc5 {[%clk 0:00:14]}  Re7 {[%clk 0:00:01]} 44. Kd6 {[%clk 0:00:14]}  Re2 {[%clk 0:00:02]} 45. Kxc6 {[%clk 0:00:14]}  Rxa2 {[%clk 0:00:02]} 46. Kd6 {[%clk 0:00:13]}  Re2 {[%clk 0:00:02]} 47. Bf6+ {[%clk 0:00:13]}  Kf8 {[%clk 0:00:03]} 48. Bg7+ {[%clk 0:00:13]}  Ke8 {[%clk 0:00:03]} 49. Bd4 {[%clk 0:00:09]}  Kf8 {[%clk 0:00:02]} 50. Bc5 {[%clk 0:00:06]}  f6 {[%clk 0:00:02]} 51. Kc6+ {[%clk 0:00:05]}  Kf7 {[%clk 0:00:03]} 52. Rg7+ {[%clk 0:00:06]}  Ke6 {[%clk 0:00:02]} 53. Re7+ {[%clk 0:00:05]}  Kf5 {[%clk 0:00:03]} 54. Rxe2 {[%clk 0:00:06]}  a2 {[%clk 0:00:04]} 55. Rxa2 {[%clk 0:00:07]}  Kxf4 {[%clk 0:00:03]} 56. Ra7 {[%clk 0:00:07]}  Ke4 {[%clk 0:00:04]} 57. Rxh7 {[%clk 0:00:08]}  f5 {[%clk 0:00:05]} 58. Rf7 {[%clk 0:00:08]}  f4 {[%clk 0:00:06]} 1-0


[Site "https://www.chess.com"]

[Event "Titled Tuesday Blitz May 23 Early 2023"]
[White "Omariev, Maksim"]
[Black "Sviridov, Valery"]
[WhiteFideId "4193423"]
[BlackFideId "4120680"]
[WhiteElo "2504"]
[BlackElo "2457"]
[Result "1/2-1/2"]
[Round "02"]
[TimeControl "180+2"]
[Date "2023.05.23"]
[WhiteClock "0:00:03"]
[BlackClock "0:00:52"]

1. g4 {[%clk 0:02:50]}  d5 {[%clk 0:02:58]} 2. Bg2 {[%clk 0:02:50]}  Bxg4 {[%clk 0:02:59]} 3. c4 {[%clk 0:02:49]}  c6 {[%clk 0:02:59]} 4. Qb3 {[%clk 0:02:49]}  Nf6 {[%clk 0:02:59]} 5. Qxb7 {[%clk 0:02:47]}  Nbd7 {[%clk 0:02:59]} 6. d4 {[%clk 0:02:45]}  e6 {[%clk 0:02:59]} 7. Nc3 {[%clk 0:02:45]}  Be7 {[%clk 0:02:54]} 8. Nf3 {[%clk 0:02:43]}  O-O {[%clk 0:02:53]} 9. h3 {[%clk 0:02:42]}  Bh5 {[%clk 0:02:53]} 10. Bf4 {[%clk 0:02:42]}  Qc8 {[%clk 0:02:50]} 11. Qxc8 {[%clk 0:02:21]}  Rfxc8 {[%clk 0:02:51]} 12. c5 {[%clk 0:02:21]}  h6 {[%clk 0:02:45]} 13. O-O {[%clk 0:01:53]}  Ne4 {[%clk 0:02:21]} 14. Rfc1 {[%clk 0:01:46]}  Nxc3 {[%clk 0:02:19]} 15. bxc3 {[%clk 0:01:12]}  f6 {[%clk 0:02:17]} 16. e3 {[%clk 0:01:04]}  Bg6 {[%clk 0:02:05]} 17. a4 {[%clk 0:01:01]}  a5 {[%clk 0:02:05]} 18. c4 {[%clk 0:00:57]}  Ra7 {[%clk 0:02:00]} 19. cxd5 {[%clk 0:00:53]}  exd5 {[%clk 0:02:01]} 20. h4 {[%clk 0:00:49]}  Rb7 {[%clk 0:02:01]} 21. Bh3 {[%clk 0:00:48]}  Ra8 {[%clk 0:01:59]} 22. Ra3 {[%clk 0:00:32]}  Nb8 {[%clk 0:01:58]} 23. Rcc3 {[%clk 0:00:29]}  Na6 {[%clk 0:01:59]} 24. Rab3 {[%clk 0:00:28]}  Nb4 {[%clk 0:01:58]} 25. Be6+ {[%clk 0:00:25]}  Kf8 {[%clk 0:01:48]} 26. Nd2 {[%clk 0:00:24]}  h5 {[%clk 0:01:38]} 27. Bh3 {[%clk 0:00:21]}  Raa7 {[%clk 0:01:36]} 28. f3 {[%clk 0:00:17]}  Na2 {[%clk 0:01:35]} 29. Rxb7 {[%clk 0:00:15]}  Rxb7 {[%clk 0:01:36]} 30. Ra3 {[%clk 0:00:15]}  Nb4 {[%clk 0:01:35]} 31. Rb3 {[%clk 0:00:13]}  Bc2 {[%clk 0:01:34]} 32. Rb2 {[%clk 0:00:13]}  Bxa4 {[%clk 0:01:33]} 33. e4 {[%clk 0:00:13]}  Bb5 {[%clk 0:01:28]} 34. Nb3 {[%clk 0:00:07]}  Nd3 {[%clk 0:01:28]} 35. Nxa5 {[%clk 0:00:07]}  Ra7 {[%clk 0:01:28]} 36. Nxc6 {[%clk 0:00:06]}  Ra1+ {[%clk 0:01:24]} 37. Bf1 {[%clk 0:00:04]}  Nxb2 {[%clk 0:01:24]} 38. exd5 {[%clk 0:00:03]}  Rxf1+ {[%clk 0:01:24]} 39. Kg2 {[%clk 0:00:04]}  Bxc6 {[%clk 0:01:24]} 40. dxc6 {[%clk 0:00:04]}  Ra1 {[%clk 0:01:22]} 41. d5 {[%clk 0:00:04]}  Nd3 {[%clk 0:01:17]} 42. Bb8 {[%clk 0:00:03]}  Nxc5 {[%clk 0:01:17]} 43. c7 {[%clk 0:00:03]}  Ra2+ {[%clk 0:01:15]} 44. Kh3 {[%clk 0:00:02]}  Rh2+ {[%clk 0:00:59]} 45. Kxh2 {[%clk 0:00:01]}  Bd6+ {[%clk 0:01:00]} 46. Kg2 {[%clk 0:00:02]}  Bxc7 {[%clk 0:01:01]} 47. Bxc7 {[%clk 0:00:02]}  Kf7 {[%clk 0:01:02]} 48. Kg3 {[%clk 0:00:02]}  g5 {[%clk 0:00:59]} 49. hxg5 {[%clk 0:00:01]}  fxg5 {[%clk 0:01:00]} 50. f4 {[%clk 0:00:02]}  g4 {[%clk 0:01:00]} 51. Kh4 {[%clk 0:00:02]}  Kg6 {[%clk 0:01:00]} 52. d6 {[%clk 0:00:02]}  Kf6 {[%clk 0:01:00]} 53. Kxh5 {[%clk 0:00:01]}  g3 {[%clk 0:01:00]} 54. Bb6 {[%clk 0:00:02]}  Nd7 {[%clk 0:00:56]} 55. Bd4+ {[%clk 0:00:02]}  Kf5 {[%clk 0:00:56]} 56. Be3 {[%clk 0:00:01]}  Ke4 {[%clk 0:00:56]} 57. Kh4 {[%clk 0:00:02]}  g2 {[%clk 0:00:56]} 58. Kh3 {[%clk 0:00:02]}  Kxe3 {[%clk 0:00:51]} 59. Kxg2 {[%clk 0:00:02]}  Kxf4 {[%clk 0:00:52]} 60. Kf2 {[%clk 0:00:02]}  Ke5 {[%clk 0:00:52]} 61. Ke2 {[%clk 0:00:03]}  Kxd6 {[%clk 0:00:52]} 1/2-1/2


[Site "https://www.chess.com"]

[Event "Titled Tuesday Blitz May 23 Early 2023"]
[White "Molina, Roberto Junio Brito"]
[Black "Principe, Alexander"]
[WhiteFideId "2109450"]
[BlackFideId "3804542"]
[WhiteElo "2376"]
[BlackElo "2203"]
[Result "1-0"]
[Round "02"]
[TimeControl "180+2"]
[Date "2023.05.23"]
[WhiteClock "0:02:18"]
[BlackClock "0:02:39"]

1. d4 {[%clk 0:02:52]}  Nf6 {[%clk 0:03:00]} 2. Nf3 {[%clk 0:02:47]}  g6 {[%clk 0:03:00]} 3. e3 {[%clk 0:02:47]}  Bg7 {[%clk 0:02:59]} 4. b3 {[%clk 0:02:48]}  O-O {[%clk 0:03:00]} 5. Bb2 {[%clk 0:02:48]}  b6 {[%clk 0:03:00]} 6. Bd3 {[%clk 0:02:47]}  Bb7 {[%clk 0:03:01]} 7. O-O {[%clk 0:02:47]}  d6 {[%clk 0:03:01]} 8. c4 {[%clk 0:02:47]}  Nbd7 {[%clk 0:03:01]} 9. d5 {[%clk 0:02:46]}  c6 {[%clk 0:03:00]} 10. e4 {[%clk 0:02:44]}  cxd5 {[%clk 0:03:00]} 11. exd5 {[%clk 0:02:42]}  Nh5 {[%clk 0:03:00]} 12. Bxg7 {[%clk 0:02:40]}  Nxg7 {[%clk 0:03:01]} 13. Nc3 {[%clk 0:02:39]}  e5 {[%clk 0:02:48]} 14. dxe6 {[%clk 0:02:37]}  fxe6 {[%clk 0:02:49]} 15. Be4 {[%clk 0:02:37]}  Nc5 {[%clk 0:02:48]} 16. Bxb7 {[%clk 0:02:36]}  Nxb7 {[%clk 0:02:48]} 17. Nd4 {[%clk 0:02:32]}  Qd7 {[%clk 0:02:48]} 18. Qe2 {[%clk 0:02:28]}  Rae8 {[%clk 0:02:48]} 19. Rad1 {[%clk 0:02:28]}  a6 {[%clk 0:02:44]} 20. Rd2 {[%clk 0:02:26]}  Qc7 {[%clk 0:02:44]} 21. Rfd1 {[%clk 0:02:25]}  Rf7 {[%clk 0:02:43]} 22. Ne4 {[%clk 0:02:20]}  Rfe7 {[%clk 0:02:40]} 23. Nf6+ {[%clk 0:02:18]}  Kh8 {[%clk 0:02:39]} 24. Nxe8 {[%clk 0:02:18]} 1-0


[Site "https://www.chess.com"]

[Event "Titled Tuesday Blitz May 23 Early 2023"]
[White "Sattarov, Bobir"]
[Black "Shukhman, Anna"]
[WhiteFideId "14203081"]
[BlackFideId "54180058"]
[WhiteElo "2351"]
[BlackElo "2235"]
[Result "1/2-1/2"]
[Round "02"]
[TimeControl "180+2"]
[Date "2023.05.23"]
[WhiteClock "0:00:14"]
[BlackClock "0:00:15"]

1. c4 {[%clk 0:03:00]}  e5 {[%clk 0:02:59]} 2. Nc3 {[%clk 0:03:00]}  Nc6 {[%clk 0:02:59]} 3. g3 {[%clk 0:03:00]}  f5 {[%clk 0:02:59]} 4. Bg2 {[%clk 0:03:00]}  Nf6 {[%clk 0:02:59]} 5. d3 {[%clk 0:03:00]}  Bb4 {[%clk 0:02:59]} 6. e3 {[%clk 0:02:56]}  O-O {[%clk 0:02:59]} 7. Ne2 {[%clk 0:02:56]}  Be7 {[%clk 0:02:54]} 8. O-O {[%clk 0:02:56]}  d6 {[%clk 0:02:55]} 9. Rb1 {[%clk 0:02:55]}  a5 {[%clk 0:02:53]} 10. a3 {[%clk 0:02:56]}  Qe8 {[%clk 0:02:53]} 11. b4 {[%clk 0:02:56]}  axb4 {[%clk 0:02:53]} 12. axb4 {[%clk 0:02:57]}  Qh5 {[%clk 0:02:53]} 13. b5 {[%clk 0:02:55]}  Nb8 {[%clk 0:02:49]} 14. f4 {[%clk 0:02:46]}  Nbd7 {[%clk 0:02:44]} 15. Nd5 {[%clk 0:02:40]}  Nxd5 {[%clk 0:02:42]} 16. Bxd5+ {[%clk 0:02:41]}  Kh8 {[%clk 0:02:41]} 17. Nc3 {[%clk 0:02:41]}  Qxd1 {[%clk 0:02:35]} 18. Rxd1 {[%clk 0:02:42]}  Nc5 {[%clk 0:02:35]} 19. d4 {[%clk 0:02:41]}  exd4 {[%clk 0:02:27]} 20. exd4 {[%clk 0:02:41]}  Na4 {[%clk 0:02:27]} 21. Ne2 {[%clk 0:02:30]}  Nb6 {[%clk 0:02:23]} 22. Nc3 {[%clk 0:02:25]}  Na4 {[%clk 0:02:22]} 23. Bd2 {[%clk 0:02:17]}  Bf6 {[%clk 0:02:18]} 24. Be1 {[%clk 0:02:11]}  Re8 {[%clk 0:02:16]} 25. Ra1 {[%clk 0:01:53]}  Nb2 {[%clk 0:01:42]} 26. Rxa8 {[%clk 0:01:30]}  Nxd1 {[%clk 0:01:40]} 27. Nxd1 {[%clk 0:01:31]}  Rxe1+ {[%clk 0:01:39]} 28. Kf2 {[%clk 0:01:27]}  Re8 {[%clk 0:01:39]} 29. Bxb7 {[%clk 0:01:23]}  Bxd4+ {[%clk 0:01:38]} 30. Kf1 {[%clk 0:01:24]}  Bd7 {[%clk 0:01:36]} 31. Rxe8+ {[%clk 0:01:21]}  Bxe8 {[%clk 0:01:37]} 32. Ke2 {[%clk 0:01:19]}  Kg8 {[%clk 0:01:33]} 33. Ne3 {[%clk 0:01:16]}  Bxe3 {[%clk 0:01:32]} 34. Kxe3 {[%clk 0:01:17]}  Kf7 {[%clk 0:01:31]} 35. Kd4 {[%clk 0:01:12]}  Ke7 {[%clk 0:01:29]} 36. Bc8 {[%clk 0:01:10]}  Kf6 {[%clk 0:01:20]} 37. Kc3 {[%clk 0:01:01]}  Bh5 {[%clk 0:01:14]} 38. Kb4 {[%clk 0:00:57]}  Be2 {[%clk 0:01:12]} 39. Bb7 {[%clk 0:00:42]}  Ke7 {[%clk 0:01:10]} 40. Bd5 {[%clk 0:00:41]}  h6 {[%clk 0:01:09]} 41. Ka5 {[%clk 0:00:40]}  Kd8 {[%clk 0:00:59]} 42. Ka6 {[%clk 0:00:39]}  Bd3 {[%clk 0:00:44]} 43. h4 {[%clk 0:00:39]}  Be2 {[%clk 0:00:36]} 44. Ka5 {[%clk 0:00:38]}  Bd3 {[%clk 0:00:35]} 45. Kb4 {[%clk 0:00:39]}  Ke7 {[%clk 0:00:34]} 46. Kc3 {[%clk 0:00:39]}  Be2 {[%clk 0:00:34]} 47. Kd4 {[%clk 0:00:40]}  Kf6 {[%clk 0:00:34]} 48. Bc6 {[%clk 0:00:39]}  Bf1 {[%clk 0:00:33]} 49. Bd7 {[%clk 0:00:38]}  Be2 {[%clk 0:00:32]} 50. Kd5 {[%clk 0:00:34]}  Bf3+ {[%clk 0:00:32]} 51. Kd4 {[%clk 0:00:35]}  Be2 {[%clk 0:00:32]} 52. Kc3 {[%clk 0:00:33]}  Bf1 {[%clk 0:00:32]} 53. Kb4 {[%clk 0:00:33]}  Bd3 {[%clk 0:00:31]} 54. c5 {[%clk 0:00:32]}  dxc5+ {[%clk 0:00:30]} 55. Kxc5 {[%clk 0:00:32]}  Ke7 {[%clk 0:00:31]} 56. Bc8 {[%clk 0:00:33]}  g6 {[%clk 0:00:28]} 57. Kc6 {[%clk 0:00:31]}  Bc4 {[%clk 0:00:27]} 58. Ba6 {[%clk 0:00:28]}  Kd8 {[%clk 0:00:20]} 59. Kc5 {[%clk 0:00:22]}  Be2 {[%clk 0:00:19]} 60. Bb7 {[%clk 0:00:22]}  Ke7 {[%clk 0:00:19]} 61. Bd5 {[%clk 0:00:22]}  Bd3 {[%clk 0:00:18]} 62. Kc6 {[%clk 0:00:20]}  Be2 {[%clk 0:00:18]} 63. Bb3 {[%clk 0:00:18]}  Bd3 {[%clk 0:00:18]} 64. Ba4 {[%clk 0:00:18]}  Kd8 {[%clk 0:00:18]} 65. Kd5 {[%clk 0:00:19]}  Ke7 {[%clk 0:00:17]} 66. Ke5 {[%clk 0:00:18]}  Bf1 {[%clk 0:00:17]} 67. Kd5 {[%clk 0:00:18]}  Bd3 {[%clk 0:00:17]} 68. Kc6 {[%clk 0:00:19]}  Kd8 {[%clk 0:00:17]} 69. Bb3 {[%clk 0:00:19]}  Ke7 {[%clk 0:00:16]} 70. Bd5 {[%clk 0:00:18]}  Be2 {[%clk 0:00:16]} 71. Kc5 {[%clk 0:00:18]}  Bd3 {[%clk 0:00:16]} 72. Bg8 {[%clk 0:00:17]}  Be2 {[%clk 0:00:15]} 73. Bd5 {[%clk 0:00:14]} 1/2-1/2


[Site "https://www.chess.com"]

[Event "Titled Tuesday Blitz May 23 Early 2023"]
[White "Kielinkei"]
[Black "Suyarov, Mukhammadzokhid"]
[BlackFideId "14210495"]
[WhiteElo "2451"]
[BlackElo "2361"]
[Result "0-1"]
[Round "02"]
[TimeControl "180+2"]
[Date "2023.05.23"]
[WhiteClock "0:00:09"]
[BlackClock "0:00:48"]

1. d4 {[%clk 0:03:00]}  e6 {[%clk 0:02:57]} 2. c4 {[%clk 0:02:59]}  b6 {[%clk 0:02:58]} 3. e4 {[%clk 0:02:55]}  Bb4+ {[%clk 0:02:57]} 4. Bd2 {[%clk 0:02:54]}  Bxd2+ {[%clk 0:02:57]} 5. Qxd2 {[%clk 0:02:54]}  d5 {[%clk 0:02:57]} 6. Nc3 {[%clk 0:02:49]}  dxe4 {[%clk 0:02:54]} 7. Nxe4 {[%clk 0:02:49]}  Bb7 {[%clk 0:02:55]} 8. Nc3 {[%clk 0:02:42]}  Nf6 {[%clk 0:02:54]} 9. Nf3 {[%clk 0:02:41]}  O-O {[%clk 0:02:54]} 10. Be2 {[%clk 0:02:41]}  c5 {[%clk 0:02:52]} 11. O-O {[%clk 0:02:34]}  cxd4 {[%clk 0:02:50]} 12. Nxd4 {[%clk 0:02:26]}  e5 {[%clk 0:02:44]} 13. Nf3 {[%clk 0:02:20]}  Qxd2 {[%clk 0:02:45]} 14. Nxd2 {[%clk 0:02:19]}  Nc6 {[%clk 0:02:42]} 15. Bf3 {[%clk 0:02:16]}  Rab8 {[%clk 0:02:39]} 16. Rfd1 {[%clk 0:02:11]}  Kh8 {[%clk 0:02:23]} 17. Nd5 {[%clk 0:01:51]}  Nd4 {[%clk 0:02:22]} 18. Be4 {[%clk 0:01:18]}  Nxe4 {[%clk 0:01:47]} 19. Nxe4 {[%clk 0:01:18]}  Rfd8 {[%clk 0:01:47]} 20. Nec3 {[%clk 0:01:14]}  Rbc8 {[%clk 0:01:47]} 21. b3 {[%clk 0:00:57]}  b5 {[%clk 0:01:46]} 22. Ne3 {[%clk 0:00:57]}  bxc4 {[%clk 0:01:44]} 23. Nxc4 {[%clk 0:00:52]}  f6 {[%clk 0:01:41]} 24. Na4 {[%clk 0:00:18]}  Ba6 {[%clk 0:01:40]} 25. Nab2 {[%clk 0:00:18]}  h5 {[%clk 0:01:36]} 26. Kf1 {[%clk 0:00:16]}  h4 {[%clk 0:01:36]} 27. h3 {[%clk 0:00:15]}  Kh7 {[%clk 0:01:36]} 28. Rac1 {[%clk 0:00:15]}  Kg6 {[%clk 0:01:36]} 29. Rc3 {[%clk 0:00:16]}  Bb5 {[%clk 0:01:33]} 30. Rdc1 {[%clk 0:00:16]}  Rd7 {[%clk 0:01:30]} 31. Ke1 {[%clk 0:00:17]}  Rdc7 {[%clk 0:01:30]} 32. Kd2 {[%clk 0:00:13]}  Kh7 {[%clk 0:01:24]} 33. Nd6 {[%clk 0:00:13]}  Rxc3 {[%clk 0:01:22]} 34. Nxc8 {[%clk 0:00:11]}  Rxc1 {[%clk 0:01:21]} 35. Kxc1 {[%clk 0:00:12]}  Bf1 {[%clk 0:01:21]} 36. g3 {[%clk 0:00:07]}  hxg3 {[%clk 0:01:21]} 37. fxg3 {[%clk 0:00:08]}  Bxh3 {[%clk 0:01:22]} 38. Nxa7 {[%clk 0:00:09]}  Ne2+ {[%clk 0:01:22]} 39. Kd2 {[%clk 0:00:09]}  Nxg3 {[%clk 0:01:23]} 40. b4 {[%clk 0:00:09]}  f5 {[%clk 0:01:23]} 41. b5 {[%clk 0:00:09]}  f4 {[%clk 0:01:24]} 42. b6 {[%clk 0:00:09]}  Bg2 {[%clk 0:01:23]} 43. Nd3 {[%clk 0:00:05]}  Ne4+ {[%clk 0:01:18]} 44. Kc2 {[%clk 0:00:02]}  Nd6 {[%clk 0:01:16]} 45. Nxe5 {[%clk 0:00:02]}  f3 {[%clk 0:01:17]} 46. Nd3 {[%clk 0:00:01]}  Bf1 {[%clk 0:01:16]} 47. Nf2 {[%clk 0:00:01]}  Ba6 {[%clk 0:01:15]} 48. Kd2 {[%clk 0:00:02]}  Nc4+ {[%clk 0:01:16]} 49. Ke1 {[%clk 0:00:02]}  Nxb6 {[%clk 0:01:15]} 50. Nc6 {[%clk 0:00:02]}  Nd5 {[%clk 0:01:15]} 51. Ne5 {[%clk 0:00:03]}  Be2 {[%clk 0:01:14]} 52. Kd2 {[%clk 0:00:04]}  g5 {[%clk 0:01:12]} 53. a4 {[%clk 0:00:04]}  Nc7 {[%clk 0:01:09]} 54. a5 {[%clk 0:00:04]}  Nd5 {[%clk 0:01:08]} 55. a6 {[%clk 0:00:04]}  Bxa6 {[%clk 0:01:08]} 56. Nxf3 {[%clk 0:00:05]}  Kg6 {[%clk 0:01:08]} 57. Nxg5 {[%clk 0:00:04]}  Kxg5 {[%clk 0:01:08]} 58. Ne4+ {[%clk 0:00:05]}  Kf4 {[%clk 0:01:08]} 59. Nc3 {[%clk 0:00:06]}  Nb6 {[%clk 0:01:08]} 60. Ne2+ {[%clk 0:00:06]}  Ke5 {[%clk 0:01:08]} 61. Nc3 {[%clk 0:00:07]}  Nc4+ {[%clk 0:01:09]} 62. Kc2 {[%clk 0:00:07]}  Kd4 {[%clk 0:01:09]} 63. Ne2+ {[%clk 0:00:08]}  Kc5 {[%clk 0:01:09]} 64. Nc3 {[%clk 0:00:09]}  Ne5 {[%clk 0:01:08]} 65. Ne4+ {[%clk 0:00:09]}  Kd4 {[%clk 0:01:09]} 66. Nc3 {[%clk 0:00:10]}  Bc4 {[%clk 0:01:09]} 67. Kd2 {[%clk 0:00:09]}  Bd3 {[%clk 0:01:07]} 68. Ne2+ {[%clk 0:00:09]}  Kc4 {[%clk 0:01:08]} 69. Nf4 {[%clk 0:00:08]}  Bh7 {[%clk 0:01:07]} 70. Ke3 {[%clk 0:00:09]}  Kc3 {[%clk 0:01:04]} 71. Nd5+ {[%clk 0:00:09]}  Kc4 {[%clk 0:01:05]} 72. Nf4 {[%clk 0:00:10]}  Ng4+ {[%clk 0:01:05]} 73. Kf3 {[%clk 0:00:10]}  Nf6 {[%clk 0:01:06]} 74. Ke3 {[%clk 0:00:10]}  Kc5 {[%clk 0:01:04]} 75. Nd3+ {[%clk 0:00:10]}  Kd6 {[%clk 0:01:04]} 76. Nf4 {[%clk 0:00:10]}  Ke5 {[%clk 0:01:04]} 77. Nd3+ {[%clk 0:00:10]}  Kf5 {[%clk 0:01:05]} 78. Kd4 {[%clk 0:00:11]}  Bg8 {[%clk 0:01:04]} 79. Nc5 {[%clk 0:00:11]}  Nh5 {[%clk 0:01:03]} 80. Nd3 {[%clk 0:00:12]}  Ng3 {[%clk 0:01:03]} 81. Nc5 {[%clk 0:00:12]}  Bf7 {[%clk 0:01:01]} 82. Kd3 {[%clk 0:00:12]}  Ke5 {[%clk 0:01:01]} 83. Kc3 {[%clk 0:00:10]}  Kd5 {[%clk 0:01:01]} 84. Nd3 {[%clk 0:00:10]}  Ne4+ {[%clk 0:01:01]} 85. Kc2 {[%clk 0:00:10]}  Kd4 {[%clk 0:01:02]} 86. Nb4 {[%clk 0:00:10]}  Be8 {[%clk 0:01:01]} 87. Kb2 {[%clk 0:00:08]}  Nc5 {[%clk 0:01:00]} 88. Nc2+ {[%clk 0:00:08]}  Kd3 {[%clk 0:01:01]} 89. Nb4+ {[%clk 0:00:08]}  Kc4 {[%clk 0:01:01]} 90. Nc2 {[%clk 0:00:09]}  Nd3+ {[%clk 0:01:02]} 91. Ka3 {[%clk 0:00:07]}  Bc6 {[%clk 0:01:01]} 92. Ne3+ {[%clk 0:00:07]}  Kc3 {[%clk 0:01:01]} 93. Nd1+ {[%clk 0:00:07]}  Kc2 {[%clk 0:00:59]} 94. Ne3+ {[%clk 0:00:08]}  Kd2 {[%clk 0:01:00]} 95. Nc4+ {[%clk 0:00:08]}  Kc3 {[%clk 0:01:00]} 96. Ne3 {[%clk 0:00:08]}  Nf2 {[%clk 0:00:54]} 97. Ka2 {[%clk 0:00:06]}  Kd3 {[%clk 0:00:51]} 98. Nf5 {[%clk 0:00:05]}  Bd7 {[%clk 0:00:52]} 99. Nd6 {[%clk 0:00:05]}  Kd4 {[%clk 0:00:52]} 100. Kb3 {[%clk 0:00:04]}  Kc5 {[%clk 0:00:52]} 101. Nf7 {[%clk 0:00:03]}  Be6+ {[%clk 0:00:51]} 102. Kc3 {[%clk 0:00:02]}  Bxf7 {[%clk 0:00:52]} 103. Kd2 {[%clk 0:00:03]}  Kd4 {[%clk 0:00:53]} 104. Ke2 {[%clk 0:00:04]}  Nd3 {[%clk 0:00:53]} 105. Kd2 {[%clk 0:00:04]}  Nc5 {[%clk 0:00:46]} 106. Ke2 {[%clk 0:00:03]}  Bh5+ {[%clk 0:00:44]} 107. Kd2 {[%clk 0:00:03]}  Nb3+ {[%clk 0:00:44]} 108. Kc2 {[%clk 0:00:01]}  Kc4 {[%clk 0:00:44]} 109. Kb2 {[%clk 0:00:02]}  Kb4 {[%clk 0:00:45]} 110. Kc2 {[%clk 0:00:03]}  Be2 {[%clk 0:00:45]} 111. Kb2 {[%clk 0:00:03]}  Bd3 {[%clk 0:00:46]} 112. Ka2 {[%clk 0:00:03]}  Kc3 {[%clk 0:00:46]} 113. Ka3 {[%clk 0:00:03]}  Bb1 {[%clk 0:00:46]} 114. Ka4 {[%clk 0:00:04]}  Nd4 {[%clk 0:00:46]} 115. Ka3 {[%clk 0:00:04]}  Nb5+ {[%clk 0:00:43]} 116. Ka4 {[%clk 0:00:05]}  Kc4 {[%clk 0:00:44]} 117. Ka5 {[%clk 0:00:05]}  Kc5 {[%clk 0:00:44]} 118. Ka6 {[%clk 0:00:04]}  Nd6 {[%clk 0:00:44]} 119. Ka5 {[%clk 0:00:04]}  Bc2 {[%clk 0:00:44]} 120. Ka6 {[%clk 0:00:05]}  Bd1 {[%clk 0:00:44]} 121. Ka5 {[%clk 0:00:05]}  Nb7+ {[%clk 0:00:44]} 122. Ka6 {[%clk 0:00:06]}  Kc6 {[%clk 0:00:45]} 123. Ka7 {[%clk 0:00:06]}  Kc7 {[%clk 0:00:45]} 124. Ka6 {[%clk 0:00:07]}  Be2+ {[%clk 0:00:46]} 125. Ka7 {[%clk 0:00:08]}  Nd6 {[%clk 0:00:46]} 126. Ka8 {[%clk 0:00:08]}  Bf1 {[%clk 0:00:46]} 127. Ka7 {[%clk 0:00:08]}  Nc8+ {[%clk 0:00:47]} 128. Ka8 {[%clk 0:00:09]}  Bg2# {[%clk 0:00:48]} 0-1


[Site "https://www.chess.com"]